[Event "Titled Tuesday Blitz March 08 Late 2022"]
[White "Gracia Alvarez, Gerardo Antonio"]
[Black "Antonova, Nadezhda"]
[WhiteFideId "5109124"]
[BlackFideId "14700182"]
[WhiteElo "2139"]
[BlackElo "1751"]
[Result "0-1"]
[Round "05"]
[TimeControl "180+1"]
[Date "2022.03.09"]
[WhiteClock "0:00:03"]
[BlackClock "0:00:13"]

1. e4 {[%clk 0:02:55]}  c5 {[%clk 0:02:59]} 2. Nc3 {[%clk 0:02:55]}  Nc6 {[%clk 0:02:58]} 3. Bb5 {[%clk 0:02:54]}  Nd4 {[%clk 0:02:55]} 4. Nf3 {[%clk 0:02:54]}  Nxb5 {[%clk 0:02:53]} 5. Nxb5 {[%clk 0:02:54]}  a6 {[%clk 0:02:53]} 6. Nc3 {[%clk 0:02:54]}  d6 {[%clk 0:02:53]} 7. d4 {[%clk 0:02:54]}  cxd4 {[%clk 0:02:52]} 8. Qxd4 {[%clk 0:02:54]}  Nf6 {[%clk 0:02:53]} 9. Bg5 {[%clk 0:02:53]}  e6 {[%clk 0:02:40]} 10. O-O-O {[%clk 0:02:53]}  Be7 {[%clk 0:02:41]} 11. e5 {[%clk 0:02:16]}  dxe5 {[%clk 0:02:40]} 12. Qxe5 {[%clk 0:02:14]}  Bd7 {[%clk 0:02:37]} 13. Rd2 {[%clk 0:01:59]}  Qc8 {[%clk 0:02:32]} 14. Qg3 {[%clk 0:01:42]}  O-O {[%clk 0:02:28]} 15. Ne5 {[%clk 0:01:39]}  Bc6 {[%clk 0:02:25]} 16. Bh6 {[%clk 0:01:31]}  Ne8 {[%clk 0:02:14]} 17. Rhd1 {[%clk 0:01:21]}  Bf6 {[%clk 0:02:12]} 18. Bf4 {[%clk 0:01:17]}  g6 {[%clk 0:01:58]} 19. h4 {[%clk 0:01:05]}  Ng7 {[%clk 0:01:49]} 20. Ng4 {[%clk 0:01:05]}  Be7 {[%clk 0:01:45]} 21. Bd6 {[%clk 0:00:54]}  Bxd6 {[%clk 0:01:36]} 22. Nf6+ {[%clk 0:00:52]}  Kh8 {[%clk 0:01:34]} 23. Qxd6 {[%clk 0:00:50]}  Nf5 {[%clk 0:01:31]} 24. Qf4 {[%clk 0:00:49]}  Kg7 {[%clk 0:01:27]} 25. Nce4 {[%clk 0:00:38]}  Bxe4 {[%clk 0:01:22]} 26. Nxe4 {[%clk 0:00:39]}  Qb8 {[%clk 0:01:17]} 27. Qg5 {[%clk 0:00:35]}  h6 {[%clk 0:01:09]} 28. Qg4 {[%clk 0:00:30]}  Qc7 {[%clk 0:00:57]} 29. h5 {[%clk 0:00:30]}  Rad8 {[%clk 0:00:55]} 30. hxg6 {[%clk 0:00:29]}  fxg6 {[%clk 0:00:54]} 31. Qe2 {[%clk 0:00:25]}  Rxd2 {[%clk 0:00:46]} 32. Qxd2 {[%clk 0:00:24]}  Rf7 {[%clk 0:00:32]} 33. g4 {[%clk 0:00:25]}  Ne7 {[%clk 0:00:32]} 34. Qd4+ {[%clk 0:00:25]}  Kf8 {[%clk 0:00:28]} 35. Qh8+ {[%clk 0:00:22]}  Ng8 {[%clk 0:00:28]} 36. Kb1 {[%clk 0:00:17]}  b5 {[%clk 0:00:26]} 37. a3 {[%clk 0:00:17]}  a5 {[%clk 0:00:26]} 38. Rd3 {[%clk 0:00:17]}  b4 {[%clk 0:00:24]} 39. axb4 {[%clk 0:00:17]}  axb4 {[%clk 0:00:24]} 40. Rd4 {[%clk 0:00:15]}  b3 {[%clk 0:00:21]} 41. cxb3 {[%clk 0:00:11]}  Rd7 {[%clk 0:00:14]} 42. Rc4 {[%clk 0:00:09]}  Qf4 {[%clk 0:00:13]} 43. Rc8+ {[%clk 0:00:07]}  Ke7 {[%clk 0:00:13]} 44. Qxg8 {[%clk 0:00:05]}  Qxe4+ {[%clk 0:00:13]} 45. Ka2 {[%clk 0:00:03]}  Ra7# {[%clk 0:00:13]} 0-1


[Site "https://www.chess.com"]

[Event "Titled Tuesday Blitz March 08 Late 2022"]
[White "Gulecyuz, Deniz"]
[Black "Nayem, Haque"]
[WhiteFideId "30921341"]
[BlackFideId "10217754"]
[WhiteElo "1923"]
[BlackElo "1982"]
[Result "0-1"]
[Round "05"]
[TimeControl "180+1"]
[Date "2022.03.09"]
[WhiteClock "0:00:03"]
[BlackClock "0:01:26"]

1. Nf3 {[%clk 0:02:59]}  Nf6 {[%clk 0:02:59]} 2. g3 {[%clk 0:02:59]}  d5 {[%clk 0:02:59]} 3. Bg2 {[%clk 0:03:00]}  Bf5 {[%clk 0:02:58]} 4. O-O {[%clk 0:02:58]}  e6 {[%clk 0:02:57]} 5. c4 {[%clk 0:02:59]}  h6 {[%clk 0:02:56]} 6. Nc3 {[%clk 0:02:56]}  c6 {[%clk 0:02:55]} 7. d4 {[%clk 0:02:55]}  Nbd7 {[%clk 0:02:55]} 8. Re1 {[%clk 0:02:52]}  Be7 {[%clk 0:02:54]} 9. Qb3 {[%clk 0:02:34]}  Qb6 {[%clk 0:02:53]} 10. Bd2 {[%clk 0:02:12]}  dxc4 {[%clk 0:02:49]} 11. Qxc4 {[%clk 0:02:07]}  Qxb2 {[%clk 0:02:46]} 12. e4 {[%clk 0:02:07]}  Nb6 {[%clk 0:02:45]} 13. Qd3 {[%clk 0:01:57]}  Bh7 {[%clk 0:02:43]} 14. a3 {[%clk 0:01:29]}  Qb3 {[%clk 0:02:39]} 15. Bf1 {[%clk 0:01:21]}  c5 {[%clk 0:01:55]} 16. Reb1 {[%clk 0:01:16]}  c4 {[%clk 0:01:55]} 17. Qe3 {[%clk 0:01:03]}  Nfd5 {[%clk 0:01:37]} 18. Nxd5 {[%clk 0:00:24]}  Qxb1 {[%clk 0:01:37]} 19. Rxb1 {[%clk 0:00:20]}  exd5 {[%clk 0:01:37]} 20. Re1 {[%clk 0:00:17]}  dxe4 {[%clk 0:01:36]} 21. Ne5 {[%clk 0:00:17]}  Nd5 {[%clk 0:01:35]} 22. Qe2 {[%clk 0:00:15]}  b5 {[%clk 0:01:35]} 23. Bg2 {[%clk 0:00:13]}  f5 {[%clk 0:01:35]} 24. Qh5+ {[%clk 0:00:12]}  g6 {[%clk 0:01:33]} 25. Nxg6 {[%clk 0:00:12]}  Nf6 {[%clk 0:01:34]} 26. Qxf5 {[%clk 0:00:10]}  Kf7 {[%clk 0:01:32]} 27. Bxe4 {[%clk 0:00:07]}  Rae8 {[%clk 0:01:31]} 28. Bd5+ {[%clk 0:00:07]}  Kg7 {[%clk 0:01:30]} 29. Bxh6+ {[%clk 0:00:06]}  Kxh6 {[%clk 0:01:30]} 30. Bf7 {[%clk 0:00:01]}  Kg7 {[%clk 0:01:31]} 31. Qg5 {[%clk 0:00:01]}  Ne4 {[%clk 0:01:30]} 32. Qg4 {[%clk 0:00:02]}  Nf6 {[%clk 0:01:30]} 33. Qh5 {[%clk 0:00:02]}  Kxf7 {[%clk 0:01:30]} 34. Qh6 {[%clk 0:00:02]}  Bf8 {[%clk 0:01:29]} 35. Qf4 {[%clk 0:00:02]}  Rxe1+ {[%clk 0:01:29]} 36. Kg2 {[%clk 0:00:02]}  Bxg6 {[%clk 0:01:29]} 37. Qc7+ {[%clk 0:00:02]}  Be7 {[%clk 0:01:29]} 38. Qxa7 {[%clk 0:00:03]}  Be4+ {[%clk 0:01:29]} 39. f3 {[%clk 0:00:03]}  Re2+ {[%clk 0:01:29]} 40. Kf1 {[%clk 0:00:03]}  Bd3 {[%clk 0:01:28]} 41. Kg1 {[%clk 0:00:03]}  Rhxh2 {[%clk 0:01:26]} 0-1


[Site "https://www.chess.com"]

[Event "Titled Tuesday Blitz March 08 Late 2022"]
[White "Hamitevici, Vladimir"]
[Black "Kamsky, Gata"]
[WhiteFideId "13902393"]
[BlackFideId "2000024"]
[WhiteElo "2359"]
[BlackElo "2645"]
[Result "0-1"]
[Round "05"]
[TimeControl "180+1"]
[Date "2022.03.08"]
[WhiteClock "0:00:24"]
[BlackClock "0:01:40"]

1. Nf3 {[%clk 0:02:45]}  Nf6 {[%clk 0:02:42]} 2. b3 {[%clk 0:02:41]}  d5 {[%clk 0:02:41]} 3. Bb2 {[%clk 0:02:41]}  c5 {[%clk 0:02:32]} 4. c4 {[%clk 0:02:36]}  d4 {[%clk 0:02:30]} 5. b4 {[%clk 0:02:36]}  Nc6 {[%clk 0:02:29]} 6. b5 {[%clk 0:02:35]}  Na5 {[%clk 0:02:27]} 7. d3 {[%clk 0:02:33]}  g6 {[%clk 0:02:26]} 8. g3 {[%clk 0:02:33]}  Bg7 {[%clk 0:02:24]} 9. Bg2 {[%clk 0:02:33]}  O-O {[%clk 0:02:25]} 10. O-O {[%clk 0:02:33]}  Re8 {[%clk 0:02:17]} 11. Re1 {[%clk 0:02:20]}  e5 {[%clk 0:02:16]} 12. Ng5 {[%clk 0:01:42]}  e4 {[%clk 0:02:07]} 13. Nd2 {[%clk 0:01:27]}  e3 {[%clk 0:02:05]} 14. fxe3 {[%clk 0:01:28]}  Ng4 {[%clk 0:02:02]} 15. Nxf7 {[%clk 0:01:02]}  Kxf7 {[%clk 0:01:58]} 16. Bd5+ {[%clk 0:00:46]}  Be6 {[%clk 0:01:58]} 17. exd4 {[%clk 0:00:43]}  Bxd5 {[%clk 0:01:55]} 18. cxd5 {[%clk 0:00:40]}  Ne3 {[%clk 0:01:53]} 19. Qa4 {[%clk 0:00:38]}  Qxd5 {[%clk 0:01:51]} 20. Rf1+ {[%clk 0:00:36]}  Kg8 {[%clk 0:01:50]} 21. Ne4 {[%clk 0:00:31]}  Nxf1 {[%clk 0:01:47]} 22. Rxf1 {[%clk 0:00:31]}  Bxd4+ {[%clk 0:01:40]} 23. Bxd4 {[%clk 0:00:24]}  Qxd4+ {[%clk 0:01:40]} 0-1


[Site "https://www.chess.com"]

[Event "Titled Tuesday Blitz March 08 Late 2022"]
[White "Hnydiuk, Aleksander"]
[Black "Holt, Conrad"]
[WhiteFideId "1109057"]
[BlackFideId "2034387"]
[WhiteElo "2374"]
[BlackElo "2586"]
[Result "0-1"]
[Round "05"]
[TimeControl "180+1"]
[Date "2022.03.08"]
[WhiteClock "0:00:11"]
[BlackClock "0:01:15"]

1. Nf3 {[%clk 0:03:00]}  d5 {[%clk 0:02:59]} 2. d4 {[%clk 0:03:00]}  Nf6 {[%clk 0:02:58]} 3. c4 {[%clk 0:03:01]}  c6 {[%clk 0:02:59]} 4. cxd5 {[%clk 0:02:59]}  cxd5 {[%clk 0:02:59]} 5. Nc3 {[%clk 0:03:00]}  Nc6 {[%clk 0:03:00]} 6. Bf4 {[%clk 0:03:00]}  Nh5 {[%clk 0:02:59]} 7. Bd2 {[%clk 0:02:56]}  e6 {[%clk 0:02:55]} 8. e3 {[%clk 0:02:52]}  Nf6 {[%clk 0:02:56]} 9. Bd3 {[%clk 0:02:51]}  Bd6 {[%clk 0:02:55]} 10. O-O {[%clk 0:02:50]}  O-O {[%clk 0:02:54]} 11. Rc1 {[%clk 0:02:49]}  e5 {[%clk 0:02:51]} 12. dxe5 {[%clk 0:02:45]}  Nxe5 {[%clk 0:02:51]} 13. Be2 {[%clk 0:02:31]}  Re8 {[%clk 0:02:45]} 14. Nb5 {[%clk 0:02:29]}  Bb8 {[%clk 0:02:38]} 15. Nxe5 {[%clk 0:02:24]}  Bxe5 {[%clk 0:02:27]} 16. Bc3 {[%clk 0:02:24]}  a6 {[%clk 0:02:20]} 17. Bxe5 {[%clk 0:02:21]}  Rxe5 {[%clk 0:02:19]} 18. Nd4 {[%clk 0:01:43]}  h5 {[%clk 0:02:19]} 19. Qc2 {[%clk 0:01:39]}  Bg4 {[%clk 0:02:18]} 20. Qc7 {[%clk 0:01:33]}  Re7 {[%clk 0:02:10]} 21. Qxd8+ {[%clk 0:01:32]}  Rxd8 {[%clk 0:02:10]} 22. Bxg4 {[%clk 0:01:29]}  hxg4 {[%clk 0:02:08]} 23. Rc2 {[%clk 0:01:22]}  g6 {[%clk 0:02:07]} 24. Rfc1 {[%clk 0:01:21]}  Kg7 {[%clk 0:01:58]} 25. Rc7 {[%clk 0:01:20]}  Rdd7 {[%clk 0:01:56]} 26. Rxd7 {[%clk 0:01:19]}  Rxd7 {[%clk 0:01:56]} 27. Rc8 {[%clk 0:01:09]}  Ne4 {[%clk 0:01:56]} 28. Kf1 {[%clk 0:01:06]}  Nd6 {[%clk 0:01:45]} 29. Rc5 {[%clk 0:01:05]}  Nc4 {[%clk 0:01:39]} 30. b3 {[%clk 0:01:01]}  Nd2+ {[%clk 0:01:39]} 31. Ke2 {[%clk 0:01:00]}  Ne4 {[%clk 0:01:40]} 32. Rc8 {[%clk 0:00:56]}  Kf6 {[%clk 0:01:37]} 33. f3 {[%clk 0:00:39]}  gxf3+ {[%clk 0:01:34]} 34. gxf3 {[%clk 0:00:40]}  Nd6 {[%clk 0:01:30]} 35. Rc5 {[%clk 0:00:40]}  Ne8 {[%clk 0:01:29]} 36. Kd3 {[%clk 0:00:36]}  Nc7 {[%clk 0:01:27]} 37. a4 {[%clk 0:00:32]}  Ke5 {[%clk 0:01:25]} 38. Rc1 {[%clk 0:00:29]}  Kd6 {[%clk 0:01:23]} 39. h4 {[%clk 0:00:26]}  Rd8 {[%clk 0:01:23]} 40. h5 {[%clk 0:00:20]}  gxh5 {[%clk 0:01:24]} 41. Nf5+ {[%clk 0:00:18]}  Kd7 {[%clk 0:01:24]} 42. Rg1 {[%clk 0:00:17]}  Rh8 {[%clk 0:01:23]} 43. Rg7 {[%clk 0:00:15]}  Ke6 {[%clk 0:01:23]} 44. Nd4+ {[%clk 0:00:14]}  Kf6 {[%clk 0:01:23]} 45. Rg2 {[%clk 0:00:13]}  Ne6 {[%clk 0:01:19]} 46. Ne2 {[%clk 0:00:10]}  h4 {[%clk 0:01:17]} 47. Nf4 {[%clk 0:00:10]}  Nxf4+ {[%clk 0:01:16]} 48. exf4 {[%clk 0:00:11]}  h3 {[%clk 0:01:15]} 0-1


[Site "https://www.chess.com"]

[Event "Titled Tuesday Blitz March 08 Late 2022"]
[White "Hollan, Martin"]
[Black "Koellner, Ruben Gideon"]
[WhiteFideId "360937"]
[BlackFideId "12993093"]
[WhiteElo "2468"]
[BlackElo "2417"]
[Result "0-1"]
[Round "05"]
[TimeControl "180+1"]
[Date "2022.03.08"]
[WhiteClock "0:00:01"]
[BlackClock "0:01:12"]

1. c4 {[%clk 0:03:00]}  e6 {[%clk 0:02:58]} 2. Nf3 {[%clk 0:03:00]}  d5 {[%clk 0:02:57]} 3. g3 {[%clk 0:03:00]}  Nf6 {[%clk 0:02:56]} 4. Bg2 {[%clk 0:03:00]}  dxc4 {[%clk 0:02:56]} 5. O-O {[%clk 0:03:00]}  Nbd7 {[%clk 0:02:55]} 6. Na3 {[%clk 0:03:00]}  Bxa3 {[%clk 0:02:55]} 7. bxa3 {[%clk 0:02:59]}  O-O {[%clk 0:02:56]} 8. a4 {[%clk 0:02:59]}  a5 {[%clk 0:02:55]} 9. Ba3 {[%clk 0:02:57]}  Re8 {[%clk 0:02:55]} 10. Qc2 {[%clk 0:02:57]}  Nb6 {[%clk 0:02:55]} 11. Ne5 {[%clk 0:02:50]}  Qd4 {[%clk 0:02:48]} 12. Bb2 {[%clk 0:02:49]}  Qc5 {[%clk 0:02:48]} 13. d3 {[%clk 0:02:45]}  Nfd7 {[%clk 0:02:43]} 14. Nxc4 {[%clk 0:02:38]}  Nxc4 {[%clk 0:02:43]} 15. dxc4 {[%clk 0:02:38]}  Nb6 {[%clk 0:02:43]} 16. Rac1 {[%clk 0:02:32]}  e5 {[%clk 0:02:39]} 17. Qb3 {[%clk 0:02:01]}  Qb4 {[%clk 0:02:32]} 18. Ba3 {[%clk 0:01:59]}  Qxa4 {[%clk 0:02:30]} 19. Bc5 {[%clk 0:01:49]}  Qxb3 {[%clk 0:02:28]} 20. axb3 {[%clk 0:01:49]}  a4 {[%clk 0:02:26]} 21. b4 {[%clk 0:01:27]}  Nd7 {[%clk 0:02:25]} 22. Be3 {[%clk 0:01:26]}  c6 {[%clk 0:02:23]} 23. b5 {[%clk 0:01:26]}  e4 {[%clk 0:02:19]} 24. bxc6 {[%clk 0:01:20]}  bxc6 {[%clk 0:02:20]} 25. Ra1 {[%clk 0:01:10]}  f5 {[%clk 0:02:16]} 26. Ra3 {[%clk 0:01:03]}  Ne5 {[%clk 0:02:16]} 27. Rfa1 {[%clk 0:01:02]}  Nxc4 {[%clk 0:02:16]} 28. Rxa4 {[%clk 0:01:02]}  Rxa4 {[%clk 0:02:15]} 29. Rxa4 {[%clk 0:01:02]}  Nxe3 {[%clk 0:02:15]} 30. fxe3 {[%clk 0:01:03]}  Be6 {[%clk 0:02:16]} 31. g4 {[%clk 0:01:02]}  g6 {[%clk 0:02:15]} 32. gxf5 {[%clk 0:01:02]}  gxf5 {[%clk 0:02:15]} 33. Ra6 {[%clk 0:00:58]}  c5 {[%clk 0:02:14]} 34. Rc6 {[%clk 0:00:55]}  c4 {[%clk 0:02:13]} 35. Bh3 {[%clk 0:00:54]}  Kf7 {[%clk 0:02:12]} 36. Kf2 {[%clk 0:00:46]}  Rc8 {[%clk 0:02:12]} 37. Rxc8 {[%clk 0:00:35]}  Bxc8 {[%clk 0:02:13]} 38. Ke1 {[%clk 0:00:35]}  Kf6 {[%clk 0:01:43]} 39. Kd2 {[%clk 0:00:34]}  Be6 {[%clk 0:01:42]} 40. Kc3 {[%clk 0:00:33]}  Ke5 {[%clk 0:01:43]} 41. Kb4 {[%clk 0:00:27]}  h6 {[%clk 0:01:40]} 42. Kc3 {[%clk 0:00:24]}  Bf7 {[%clk 0:01:40]} 43. Kb4 {[%clk 0:00:21]}  f4 {[%clk 0:01:40]} 44. exf4+ {[%clk 0:00:19]}  Kxf4 {[%clk 0:01:41]} 45. Kc3 {[%clk 0:00:09]}  Ke3 {[%clk 0:01:41]} 46. Bg4 {[%clk 0:00:04]}  h5 {[%clk 0:01:30]} 47. Bf5 {[%clk 0:00:04]}  Bd5 {[%clk 0:01:18]} 48. h4 {[%clk 0:00:04]}  Bf7 {[%clk 0:01:16]} 49. Kb4 {[%clk 0:00:02]}  Kd4 {[%clk 0:01:12]} 50. e3+ {[%clk 0:00:01]}  Kxe3 {[%clk 0:01:12]} 51. Kc3 {[%clk 0:00:02]}  Kf4 {[%clk 0:01:12]} 52. Bd7 {[%clk 0:00:01]}  e3 {[%clk 0:01:12]} 53. Bc6 {[%clk 0:00:02]}  Kg3 {[%clk 0:01:12]} 54. Bf3 {[%clk 0:00:01]}  Kxf3 {[%clk 0:01:12]} 0-1


[Site "https://www.chess.com"]

[Event "Titled Tuesday Blitz March 08 Late 2022"]
[White "Indjic, Aleksandar"]
[Black "Thavandiran, Shiyam"]
[WhiteFideId "911925"]
[BlackFideId "2605058"]
[WhiteElo "2616"]
[BlackElo "2357"]
[Result "1-0"]
[Round "05"]
[TimeControl "180+1"]
[Date "2022.03.08"]
[WhiteClock "0:01:34"]
[BlackClock "0:00:05"]

1. d4 {[%clk 0:02:57]}  e6 {[%clk 0:02:53]} 2. Nf3 {[%clk 0:02:56]}  Nf6 {[%clk 0:02:53]} 3. Bg5 {[%clk 0:02:55]}  h6 {[%clk 0:02:52]} 4. Bh4 {[%clk 0:02:54]}  d6 {[%clk 0:02:50]} 5. e3 {[%clk 0:02:53]}  g5 {[%clk 0:02:50]} 6. Bg3 {[%clk 0:02:53]}  Nh5 {[%clk 0:02:51]} 7. Nbd2 {[%clk 0:02:51]}  Bg7 {[%clk 0:02:47]} 8. c3 {[%clk 0:02:40]}  b6 {[%clk 0:02:37]} 9. a4 {[%clk 0:02:38]}  a6 {[%clk 0:02:35]} 10. Nc4 {[%clk 0:02:38]}  Bb7 {[%clk 0:02:32]} 11. Nfd2 {[%clk 0:02:37]}  Nxg3 {[%clk 0:02:31]} 12. hxg3 {[%clk 0:02:38]}  Nd7 {[%clk 0:02:31]} 13. e4 {[%clk 0:02:38]}  d5 {[%clk 0:02:21]} 14. exd5 {[%clk 0:02:37]}  Bxd5 {[%clk 0:02:22]} 15. Ne3 {[%clk 0:02:36]}  Bb7 {[%clk 0:02:22]} 16. Ndc4 {[%clk 0:02:31]}  Qe7 {[%clk 0:02:03]} 17. Be2 {[%clk 0:02:30]}  O-O-O {[%clk 0:01:53]} 18. Bf3 {[%clk 0:02:29]}  c6 {[%clk 0:01:19]} 19. b4 {[%clk 0:02:21]}  Nf6 {[%clk 0:01:11]} 20. b5 {[%clk 0:02:19]}  Qc7 {[%clk 0:00:50]} 21. bxa6 {[%clk 0:01:45]}  Bxa6 {[%clk 0:00:48]} 22. Qb3 {[%clk 0:01:45]}  Nd7 {[%clk 0:00:45]} 23. O-O {[%clk 0:01:43]}  f5 {[%clk 0:00:37]} 24. a5 {[%clk 0:01:38]}  b5 {[%clk 0:00:24]} 25. Nb6+ {[%clk 0:01:38]}  Nxb6 {[%clk 0:00:25]} 26. axb6 {[%clk 0:01:38]}  Qxb6 {[%clk 0:00:25]} 27. Qxe6+ {[%clk 0:01:35]}  Kc7 {[%clk 0:00:14]} 28. Nxf5 {[%clk 0:01:35]}  Bf8 {[%clk 0:00:03]} 29. Qe5+ {[%clk 0:01:35]}  Bd6 {[%clk 0:00:04]} 30. Nxd6 {[%clk 0:01:35]}  Rxd6 {[%clk 0:00:05]} 31. Qxh8 {[%clk 0:01:34]} 1-0


[Site "https://www.chess.com"]

[Event "Titled Tuesday Blitz March 08 Late 2022"]
[White "Kaganskiy, Gleb"]
[Black "Manukyan, Sargis A."]
[WhiteFideId "4132025"]
[BlackFideId "13303970"]
[WhiteElo "2165"]
[BlackElo "2187"]
[Result "0-1"]
[Round "05"]
[TimeControl "180+1"]
[Date "2022.03.09"]
[WhiteClock "0:00:02"]
[BlackClock "0:00:04"]

1. e4 {[%clk 0:02:59]}  c5 {[%clk 0:02:55]} 2. Nf3 {[%clk 0:02:58]}  d6 {[%clk 0:02:54]} 3. Bb5+ {[%clk 0:02:58]}  Bd7 {[%clk 0:02:52]} 4. Bxd7+ {[%clk 0:02:58]}  Qxd7 {[%clk 0:02:53]} 5. c4 {[%clk 0:02:56]}  Nc6 {[%clk 0:02:51]} 6. d4 {[%clk 0:02:55]}  cxd4 {[%clk 0:02:51]} 7. Nxd4 {[%clk 0:02:56]}  Nf6 {[%clk 0:02:51]} 8. Nc3 {[%clk 0:02:55]}  g6 {[%clk 0:02:51]} 9. b3 {[%clk 0:02:55]}  Bg7 {[%clk 0:02:51]} 10. Bb2 {[%clk 0:02:54]}  O-O {[%clk 0:02:52]} 11. O-O {[%clk 0:02:54]}  a6 {[%clk 0:02:49]} 12. Nxc6 {[%clk 0:02:52]}  Qxc6 {[%clk 0:02:37]} 13. Nd5 {[%clk 0:02:51]}  Nxd5 {[%clk 0:02:32]} 14. exd5 {[%clk 0:02:51]}  Qd7 {[%clk 0:02:32]} 15. Bxg7 {[%clk 0:02:49]}  Kxg7 {[%clk 0:02:33]} 16. Qd4+ {[%clk 0:02:48]}  f6 {[%clk 0:02:34]} 17. a4 {[%clk 0:02:45]}  b5 {[%clk 0:02:33]} 18. cxb5 {[%clk 0:02:41]}  axb5 {[%clk 0:02:34]} 19. a5 {[%clk 0:02:41]}  Rfc8 {[%clk 0:02:25]} 20. h4 {[%clk 0:02:28]}  Qc7 {[%clk 0:02:21]} 21. Rfe1 {[%clk 0:02:19]}  Qa7 {[%clk 0:01:44]} 22. Qe4 {[%clk 0:02:01]}  Rc7 {[%clk 0:01:44]} 23. b4 {[%clk 0:01:52]}  Rf8 {[%clk 0:01:26]} 24. Rac1 {[%clk 0:01:47]}  Rfc8 {[%clk 0:01:26]} 25. Rc6 {[%clk 0:01:39]}  e5 {[%clk 0:01:10]} 26. Rxd6 {[%clk 0:01:32]}  Rc2 {[%clk 0:00:52]} 27. Qe3 {[%clk 0:01:08]}  Qxe3 {[%clk 0:00:51]} 28. Rxe3 {[%clk 0:01:08]}  Rb2 {[%clk 0:00:48]} 29. Rf3 {[%clk 0:00:47]}  f5 {[%clk 0:00:48]} 30. Re6 {[%clk 0:00:36]}  e4 {[%clk 0:00:46]} 31. Rf4 {[%clk 0:00:36]}  Rxb4 {[%clk 0:00:43]} 32. g4 {[%clk 0:00:36]}  fxg4 {[%clk 0:00:30]} 33. Re7+ {[%clk 0:00:28]}  Kh6 {[%clk 0:00:25]} 34. Rexe4 {[%clk 0:00:27]}  Rb1+ {[%clk 0:00:20]} 35. Kg2 {[%clk 0:00:26]}  Ra1 {[%clk 0:00:18]} 36. Rxg4 {[%clk 0:00:22]}  Rxa5 {[%clk 0:00:18]} 37. Rd4 {[%clk 0:00:19]}  Ra7 {[%clk 0:00:17]} 38. d6 {[%clk 0:00:19]}  Rd7 {[%clk 0:00:17]} 39. Rg5 {[%clk 0:00:16]}  Rb8 {[%clk 0:00:16]} 40. Rb4 {[%clk 0:00:15]}  Rxd6 {[%clk 0:00:16]} 41. Rgxb5 {[%clk 0:00:15]}  Rf8 {[%clk 0:00:16]} 42. Rg5 {[%clk 0:00:10]}  Rd2 {[%clk 0:00:14]} 43. Kg3 {[%clk 0:00:05]}  Rfxf2 {[%clk 0:00:13]} 44. Rc5 {[%clk 0:00:03]}  Rg2+ {[%clk 0:00:12]} 45. Kh3 {[%clk 0:00:03]}  Rge2 {[%clk 0:00:11]} 46. Rc3 {[%clk 0:00:03]}  Rh2+ {[%clk 0:00:10]} 47. Kg3 {[%clk 0:00:02]}  Rdg2+ {[%clk 0:00:10]} 48. Kf3 {[%clk 0:00:03]}  Rg1 {[%clk 0:00:10]} 49. Rbb3 {[%clk 0:00:02]}  Rxh4 {[%clk 0:00:09]} 50. Kf2 {[%clk 0:00:02]}  Rg5 {[%clk 0:00:09]} 51. Rh3 {[%clk 0:00:02]}  Rxh3 {[%clk 0:00:09]} 52. Rxh3+ {[%clk 0:00:03]}  Rh5 {[%clk 0:00:10]} 53. Rg3 {[%clk 0:00:03]}  Rg5 {[%clk 0:00:10]} 54. Rh3+ {[%clk 0:00:03]}  Kg7 {[%clk 0:00:11]} 55. Rc3 {[%clk 0:00:03]}  h5 {[%clk 0:00:11]} 56. Rc7+ {[%clk 0:00:04]}  Kh6 {[%clk 0:00:11]} 57. Rc6 {[%clk 0:00:05]}  h4 {[%clk 0:00:12]} 58. Rc4 {[%clk 0:00:04]}  Kh5 {[%clk 0:00:11]} 59. Rb4 {[%clk 0:00:04]}  Rg4 {[%clk 0:00:11]} 60. Rb1 {[%clk 0:00:05]}  g5 {[%clk 0:00:11]} 61. Rh1 {[%clk 0:00:06]}  Ra4 {[%clk 0:00:11]} 62. Kf3 {[%clk 0:00:06]}  g4+ {[%clk 0:00:11]} 63. Kf2 {[%clk 0:00:06]}  h3 {[%clk 0:00:09]} 64. Rb1 {[%clk 0:00:06]}  Ra2+ {[%clk 0:00:09]} 65. Kg3 {[%clk 0:00:06]}  Ra3+ {[%clk 0:00:09]} 66. Kh2 {[%clk 0:00:06]}  Kh4 {[%clk 0:00:08]} 67. Rb4 {[%clk 0:00:06]}  Ra2+ {[%clk 0:00:09]} 68. Kh1 {[%clk 0:00:06]}  Ra3 {[%clk 0:00:07]} 69. Kh2 {[%clk 0:00:05]}  Rc3 {[%clk 0:00:07]} 70. Ra4 {[%clk 0:00:04]}  Rd3 {[%clk 0:00:06]} 71. Rb4 {[%clk 0:00:04]}  Rd2+ {[%clk 0:00:06]} 72. Kh1 {[%clk 0:00:04]}  Re2 {[%clk 0:00:06]} 73. Ra4 {[%clk 0:00:03]}  Kg3 {[%clk 0:00:06]} 74. Ra3+ {[%clk 0:00:03]}  Kf2 {[%clk 0:00:06]} 75. Ra4 {[%clk 0:00:02]}  g3 {[%clk 0:00:04]} 0-1


[Site "https://www.chess.com"]

[Event "Titled Tuesday Blitz March 08 Late 2022"]
[White "Karttunen, Mika"]
[Black "Song, Michael"]
[WhiteFideId "502081"]
[BlackFideId "2613190"]
[WhiteElo "2343"]
[BlackElo "2274"]
[Result "1-0"]
[Round "05"]
[TimeControl "180+1"]
[Date "2022.03.09"]
[WhiteClock "0:00:16"]
[BlackClock "0:00:47"]

1. c4 {[%clk 0:03:00]}  e5 {[%clk 0:02:58]} 2. Nc3 {[%clk 0:02:59]}  Nf6 {[%clk 0:02:58]} 3. g3 {[%clk 0:02:54]}  d5 {[%clk 0:02:57]} 4. cxd5 {[%clk 0:02:54]}  Nxd5 {[%clk 0:02:58]} 5. Bg2 {[%clk 0:02:54]}  Nb6 {[%clk 0:02:58]} 6. d3 {[%clk 0:02:54]}  Nc6 {[%clk 0:02:57]} 7. Nf3 {[%clk 0:02:50]}  Be7 {[%clk 0:02:55]} 8. O-O {[%clk 0:02:50]}  O-O {[%clk 0:02:55]} 9. a3 {[%clk 0:02:47]}  a5 {[%clk 0:02:54]} 10. Be3 {[%clk 0:02:45]}  Be6 {[%clk 0:02:48]} 11. Ne4 {[%clk 0:02:38]}  Nd5 {[%clk 0:02:36]} 12. Bc5 {[%clk 0:02:27]}  f6 {[%clk 0:02:35]} 13. Rc1 {[%clk 0:02:24]}  b6 {[%clk 0:02:23]} 14. Bxe7 {[%clk 0:02:17]}  Ncxe7 {[%clk 0:02:22]} 15. d4 {[%clk 0:02:12]}  exd4 {[%clk 0:02:19]} 16. Nxd4 {[%clk 0:02:12]}  Bf7 {[%clk 0:02:19]} 17. Nb5 {[%clk 0:01:51]}  h6 {[%clk 0:02:03]} 18. Nxc7 {[%clk 0:01:44]}  Nxc7 {[%clk 0:02:00]} 19. Qxd8 {[%clk 0:01:45]}  Raxd8 {[%clk 0:01:56]} 20. Rxc7 {[%clk 0:01:46]}  Nd5 {[%clk 0:01:51]} 21. Rc6 {[%clk 0:01:41]}  f5 {[%clk 0:01:41]} 22. Nd6 {[%clk 0:01:37]}  Ne7 {[%clk 0:01:34]} 23. Rxb6 {[%clk 0:01:18]}  Rb8 {[%clk 0:01:32]} 24. Rb7 {[%clk 0:00:50]}  Rxb7 {[%clk 0:01:22]} 25. Nxb7 {[%clk 0:00:49]}  Rb8 {[%clk 0:01:22]} 26. Rd1 {[%clk 0:00:48]}  Kh7 {[%clk 0:01:10]} 27. Rd8 {[%clk 0:00:45]}  Rxd8 {[%clk 0:01:10]} 28. Nxd8 {[%clk 0:00:44]}  Bc4 {[%clk 0:01:10]} 29. Nb7 {[%clk 0:00:36]}  a4 {[%clk 0:01:03]} 30. e3 {[%clk 0:00:37]}  Kg6 {[%clk 0:01:01]} 31. Nc5 {[%clk 0:00:37]}  Bb5 {[%clk 0:01:01]} 32. f4 {[%clk 0:00:31]}  Kf6 {[%clk 0:00:59]} 33. Kf2 {[%clk 0:00:31]}  Nc8 {[%clk 0:00:59]} 34. e4 {[%clk 0:00:23]}  fxe4 {[%clk 0:00:57]} 35. Nxe4+ {[%clk 0:00:24]}  Ke7 {[%clk 0:00:55]} 36. Nc3 {[%clk 0:00:25]}  Bd7 {[%clk 0:00:52]} 37. Ke3 {[%clk 0:00:25]}  Nd6 {[%clk 0:00:47]} 38. Kd4 {[%clk 0:00:25]}  Nf5+ {[%clk 0:00:47]} 39. Kc5 {[%clk 0:00:23]}  Ne3 {[%clk 0:00:47]} 40. Nd5+ {[%clk 0:00:16]} 1-0


[Site "https://www.chess.com"]